bitfinex-derivatives/quotes_BNBF0:USTF0_20250330
["timestamp","ask_amount","ask_price","bid_price","bid_amount"]
[1743368079973,1.50871601,602.17,601.29,0.3326182]
[1743368080171,1.50871601,602.18,601.29,0.3326182]
[1743368080369,1.25134871,602.16,601.29,0.3326182]
[1743368080570,2.76006472,602.16,601.29,0.3326182]
[1743368080770,1.25134871,602.16,601.29,0.3326182]
[1743368080970,1.25134871,602.15,601.29,0.3326182]
[1743368081375,1.25134871,602.14,601.29,0.3326182]
[1743368081875,1.25134871,602.13,601.29,0.3326182]
[1743368082871,1.25134871,602.12,601.29,0.3326182]
[1743368083579,1.25134871,602.16,601.29,0.3326182]
[1743368084385,1.50871601,602.15,601.29,0.3326182]
[1743368084678,1.50871601,602.14,601.29,0.3326182]
[1743368084878,1.50871601,602.13,601.29,0.3326182]
[1743368085086,1.50871601,602.12,601.29,0.3326182]
[1743368085281,1.50871601,602.11,601.29,0.3326182]
[1743368085478,1.50871601,602.1,601.29,0.3326182]
[1743368085678,1.50871601,602.09,601.29,0.3326182]
[1743368085876,1.25134871,602.09,601.29,0.3326182]
[1743368086176,1.5406159,602.09,601.29,0.3326182]
[1743368086381,3.04933191,602.09,601.29,0.3326182]
[1743368086575,1.25134871,602.08,601.29,0.3326182]
[1743368087882,1.25134871,602.07,601.29,0.3326182]
[1743368088390,1.25134871,602.06,601.29,0.3326182]
[1743368089186,1.25134871,602.05,601.29,0.3326182]
[1743368089385,1.54069767,602.05,601.29,0.3326182]
[1743368090087,1.25134871,602.04,601.29,0.3326182]
[1743368091781,0.28934896,602.05,601.29,0.3326182]
[1743368092988,1.25134871,602.04,601.29,0.3326182]
[1743368093483,1.25134871,602.03,601.29,0.3326182]
[1743368094087,1.25134871,602.02,601.29,0.3326182]
[1743368094984,1.25134871,602.01,601.29,0.3326182]
[1743368095490,1.5407097,602.01,601.13,0.28936099]
[1743368095690,1.25134871,602.0,601.13,0.28936099]
[1743368097184,1.25134871,601.99,600.53,2.53668648]
[1743368097389,1.25134871,601.99,600.55,0.33302805]
[1743368098390,1.25134871,601.99,600.56,0.28937423]
[1743368098595,0.28937423,601.98,600.58,0.33301142]
[1743368099096,1.54072294,601.98,600.58,0.33301142]
[1743368099488,1.298,601.97,600.58,0.33301142]
[1743368099693,2.54934871,601.97,600.58,0.33301142]
[1743368100394,1.25134871,601.96,600.58,0.33301142]
[1743368100695,1.54072174,601.96,600.58,0.33301142]
[1743368101290,1.25134871,601.95,600.58,0.33301142]
[1743368102095,1.25134871,601.94,600.58,0.33301142]
[1743368102896,1.25134871,601.93,600.58,0.33301142]
[1743368103798,0.28937303,601.96,600.58,0.33301142]
[1743368103799,1.25134871,601.92,600.58,0.33301142]
[1743368104192,1.25134871,601.95,600.58,0.33301142]
[1743368105299,1.25134871,601.94,600.58,0.33301142]
[1743368105795,1.25134871,601.93,600.58,0.33301142]
[1743368106804,1.25134871,601.92,600.58,0.33301142]
[1743368107600,1.298,601.97,600.58,0.33301142]
[1743368108704,1.298,601.97,600.62,2.53668648]
[1743368108899,1.298,601.97,600.64,0.33297815]
[1743368110501,1.298,601.97,600.84,2.53668648]
[1743368110701,1.298,601.97,600.86,0.33285623]
[1743368112006,1.298,601.97,600.9,2.53668648]
[1743368112205,1.298,601.97,600.91,0.33282854]
[1743368117911,1.298,601.97,600.91,2.86951502]
[1743368119608,0.28931168,602.07,600.91,0.33282854]
[1743368121911,1.25134871,602.05,600.91,0.33282854]
[1743368122307,0.28934656,602.04,600.91,0.33282854]
[1743368122507,1.54069527,602.04,600.91,0.33282854]
[1743368123211,1.638,602.03,600.91,0.33282854]
[1743368123812,4.06704573,602.03,600.91,0.33282854]
[1743368124109,3.13903048,602.03,600.91,0.33282854]
[1743368124314,2.56570174,602.03,600.91,0.33282854]
[1743368124513,3.13903048,602.03,600.91,0.33282854]
[1743368124809,5.81897935,602.03,600.91,0.33282854]
[1743368125008,1.50103048,602.02,600.91,0.33282854]
[1743368125411,1.79039629,602.02,600.91,0.33282854]
[1743368125814,0.28936581,602.02,600.91,0.33282854]
[1743368127215,1.638,602.03,600.91,0.33282854]
[1743368128416,0.28936821,602.02,600.91,0.33282854]
[1743368130112,1.638,602.03,600.91,0.33282854]
[1743368131119,1.25134871,602.02,600.91,0.33282854]
[1743368131514,1.54069407,602.02,600.91,0.33282854]
[1743368131714,1.25134871,602.01,600.91,0.33282854]
[1743368132416,1.25134871,602.0,600.91,0.33282854]
[1743368133214,1.25134871,601.99,600.91,0.33282854]
[1743368134320,1.25134871,601.98,600.91,0.33282854]
[1743368134915,1.25134871,601.97,600.91,0.33282854]
[1743368135323,1.289,601.96,600.91,0.33282854]
[1743368135516,2.54034871,601.96,600.91,0.33282854]
[1743368135916,1.289,601.95,600.91,0.33282854]
[1743368136219,2.54034871,601.95,600.91,0.33282854]
[1743368136421,1.289,601.95,600.91,0.33282854]
[1743368153929,3.257,601.95,600.91,0.33282854]
[1743368161632,3.257,601.95,600.94,2.53668648]
[1743368161836,3.257,601.95,600.96,0.33280085]
[1743368169143,4.50834921,601.95,600.96,0.33280085]
[1743368170045,3.257,601.95,600.96,0.33280085]
[1743368172347,4.675,601.95,600.96,0.33280085]
[1743368173544,1.25134921,601.94,600.96,0.33280085]
[1743368174247,2.707,601.95,600.96,0.33280085]
[1743368174642,2.707,601.95,601.01,2.53668648]
[1743368174840,2.707,601.95,601.02,0.33276762]
[1743368177446,4.291,601.95,601.02,0.33276762]
[1743368182443,1.25139435,601.94,601.02,0.33276762]
[1743368182852,2.7594843,601.94,601.02,0.33276762]
[1743368183049,2.7594843,601.93,601.02,0.33276762]
[1743368183245,1.50808995,601.92,601.02,0.33276762]
[1743368183444,0.93214654,601.91,601.02,0.33276762]
[1743368183670,1.64835409,601.87,601.02,0.33276762]
[1743368183849,4.85049487,601.86,601.02,0.33276762]
[1743368184049,7.00672483,601.85,601.02,0.33276762]
[1743368184248,1.64835409,601.87,601.02,0.33276762]
[1743368184249,7.50547443,601.84,601.02,0.33276762]
[1743368184451,7.00672483,601.83,601.02,0.33276762]
[1743368184750,6.34154216,601.82,600.79,0.28942958]
[1743368184943,6.34154216,601.81,600.79,0.28942958]
[1743368185144,6.34154216,601.8,600.79,0.28942958]
[1743368185348,2.42319383,601.79,600.79,0.28942958]
[1743368185549,1.50467323,601.78,600.79,0.28942958]
[1743368185850,1.50467323,601.77,600.79,0.28942958]
[1743368186045,1.50467323,601.76,600.79,0.28942958]
[1743368186351,1.50467323,601.75,600.79,0.28942958]
[1743368186553,4.84429695,601.76,600.79,0.28942958]
[1743368186750,1.82,601.74,600.79,0.28942958]
[1743368186943,2.75214654,601.74,600.79,0.28942958]
[1743368187147,4.00354089,601.74,599.86,2.53668648]
[1743368187346,1.50467323,601.73,599.88,0.33340001]
[1743368187548,2.43681977,601.73,599.88,0.33340001]
[1743368187951,1.25139435,601.72,599.88,0.33340001]
[1743368188152,3.68821412,601.72,599.88,0.33340001]
[1743368188352,0.28957047,601.71,599.89,0.28957047]
[1743368188549,0.28957047,601.71,599.91,0.33338334]
[1743368188750,1.54096482,601.71,599.91,0.33338334]
[1743368189854,0.28957047,601.71,599.91,0.33338334]
[1743368190054,2.75606758,601.73,599.91,0.33338334]
[1743368190347,1.25139435,601.73,599.91,0.33338334]
[1743368191146,1.873,601.72,599.91,0.33338334]
[1743368191344,2.1625777,601.72,599.91,0.33338334]
[1743368191751,3.66283406,601.72,599.91,0.33338334]
[1743368192450,1.25139435,601.71,599.91,0.33338334]
[1743368192648,2.75165071,601.71,599.91,0.33338334]
[1743368193346,1.25139435,601.71,599.91,0.33338334]
[1743368194447,0.28958975,601.7,599.91,0.33338334]
[1743368195656,1.25139435,601.69,599.91,0.33338334]
[1743368196252,1.25139435,601.69,599.96,2.53668648]
[1743368196452,2.74994541,601.69,599.98,0.33334444]
[1743368196852,1.25139435,601.68,599.98,0.33334444]
[1743368197455,0.28955963,601.67,599.98,0.33334444]
[1743368197654,1.54095398,601.67,599.98,0.33334444]
[1743368198157,3.03950504,601.67,599.98,0.33334444]
[1743368198655,1.25139435,601.66,599.98,0.33334444]
[1743368198855,1.25139435,601.66,599.98,2.87003092]
[1743368199252,1.25139435,601.65,599.98,2.87003092]
[1743368199453,1.54095398,601.65,599.98,2.87003092]
[1743368200063,1.25139435,601.64,599.98,2.87003092]
[1743368200658,1.25139435,601.63,599.98,0.33334444]
[1743368201264,1.25139435,601.62,599.98,0.33334444]
[1743368202266,1.25139435,601.64,599.98,0.33334444]
[1743368202463,1.25139435,601.64,600.0,2.53668648]
[1743368202771,1.25139435,601.63,600.02,0.33332222]
[1743368203468,1.25139435,601.62,600.02,0.33332222]
[1743368204168,1.25139435,601.61,600.02,2.8700087]
[1743368204871,1.25139435,601.6,600.02,2.8700087]
[1743368205667,1.276,601.59,600.02,2.8700087]
[1743368205869,1.276,601.59,600.05,2.53668648]
[1743368206168,1.276,601.59,600.07,0.33329444]
[1743368207168,1.276,601.59,600.07,2.86998092]
[1743368208966,1.276,601.59,600.11,2.53668648]
[1743368209268,1.276,601.59,600.13,0.33326112]
[1743368212773,1.25139435,601.58,600.13,0.33326112]
[1743368213372,1.25139435,601.57,600.13,0.33326112]
[1743368214273,1.25139435,601.58,600.13,0.33326112]
[1743368215074,1.25139435,601.57,600.13,0.33326112]
[1743368215973,1.25139435,601.58,600.13,0.33326112]
[1743368218378,1.25139435,601.58,600.19,2.53668648]
[1743368218676,1.25139435,601.69,600.19,2.53668648]
[1743368218876,1.25139435,601.69,600.21,0.3332167]
[1743368219477,1.25139435,601.68,600.21,0.3332167]
[1743368219976,1.25139435,601.68,600.32,2.53668648]
[1743368220171,1.25139435,601.68,600.34,0.33314455]
[1743368220370,1.49699976,601.73,600.34,0.33314455]
[1743368220371,1.25139435,601.71,600.34,0.33314455]
[1743368220777,2.74839411,601.72,600.34,0.33314455]
[1743368220977,1.25139435,601.72,600.34,0.33314455]
[1743368221677,1.25139435,601.71,600.34,0.33314455]
[1743368222476,1.666,601.7,600.34,0.33314455]
[1743368222875,2.91739435,601.7,600.34,0.33314455]
[1743368223575,1.25139435,601.69,600.34,0.33314455]
[1743368223775,2.74839411,601.69,600.34,0.33314455]
[1743368223976,1.25139435,601.69,600.34,0.33314455]
[1743368224376,0.28950543,601.68,600.34,0.33314455]
[1743368226178,2.886,601.7,600.34,0.33314455]
[1743368226974,2.886,601.7,600.34,2.86983103]
[1743368227381,3.17549579,601.7,600.34,2.86983103]
[1743368228681,3.17549579,601.7,600.34,0.33314455]
[1743368229079,2.886,601.7,600.34,0.33314455]
[1743368230476,0.28950422,601.69,600.34,0.33314455]
[1743368234677,0.28950422,601.69,600.35,2.53668648]
[1743368234981,0.28950422,601.69,600.37,0.3331279]
[1743368235179,4.38684922,601.7,600.37,0.3331279]
[1743368235578,1.25139435,601.69,600.37,0.3331279]
[1743368235782,2.75224357,601.69,600.37,0.3331279]
[1743368236384,0.28950182,601.68,600.37,0.3331279]
[1743368237985,1.79035104,601.68,600.5,2.53668648]
[1743368238185,1.50084922,601.68,600.51,0.33305024]
[1743368238981,1.25139435,601.67,600.51,0.33305024]
[1743368239381,1.54087931,601.67,600.51,0.33305024]
[1743368240087,1.25139435,601.66,600.51,0.33305024]
[1743368240787,1.25139435,601.65,600.51,0.33305024]
[1743368241182,1.25139435,601.64,600.53,2.53668648]
[1743368241413,1.25139435,601.64,600.54,0.3330336]
[1743368241587,1.25139435,601.63,600.54,0.3330336]
[1743368242291,2.75224357,601.62,600.54,0.3330336]
[1743368242492,1.50084922,601.61,600.54,0.3330336]
[1743368242690,1.50084922,601.6,600.54,0.3330336]
[1743368242885,1.50084922,601.59,600.54,0.3330336]
[1743368243089,1.50084922,601.58,600.69,2.53668648]
[1743368243287,1.50084922,601.57,600.69,2.53668648]
[1743368243593,3.34837306,601.59,600.69,2.53668648]
[1743368243594,1.50084922,601.56,600.69,2.53668648]
[1743368243795,1.50084922,601.55,600.69,2.53668648]
[1743368243996,3.24662969,601.56,600.69,2.53668648]
[1743368243997,1.50084922,601.54,600.69,2.53668648]
[1743368244196,1.50084922,601.53,600.65,2.53668648]
[1743368244396,1.50954026,601.55,600.66,0.33296706]
[1743368244597,1.25139435,601.52,600.66,0.33296706]
[1743368245096,3.34854068,601.66,600.66,0.33296706]
[1743368245097,1.25139435,601.51,600.66,0.33296706]
[1743368245498,1.50952461,601.63,600.67,2.53668648]
[1743368245696,1.50952461,601.62,600.68,0.33295598]
[1743368245898,1.50952461,601.61,600.68,0.33295598]
[1743368246198,1.50952461,601.6,600.68,0.33295598]
[1743368246397,1.50952461,601.59,600.68,0.33295598]
[1743368246593,1.50952461,601.58,600.68,0.33295598]
[1743368246810,1.50952461,601.57,600.68,0.33295598]
[1743368247000,1.50952461,601.56,600.68,0.33295598]
[1743368247193,3.24760872,601.59,600.68,0.33295598]
[1743368247396,1.50938529,601.58,600.68,0.33295598]
[1743368247593,1.50938529,601.57,600.68,0.33295598]
[1743368247796,1.50938529,601.56,600.68,0.33295598]
[1743368247993,1.50938529,601.55,600.68,2.86964246]
[1743368248193,1.50938529,601.56,600.68,2.86964246]
[1743368248398,2.76171635,601.55,600.68,2.86964246]
[1743368248597,1.25237338,601.55,600.68,2.86964246]
[1743368249499,1.25237338,601.54,600.68,0.33295598]
[1743368250197,1.25237338,601.53,600.68,0.33295598]
[1743368250995,1.25237338,601.52,600.68,0.33295598]
[1743368251599,1.50934692,601.58,600.68,0.33295598]
[1743368251801,1.50934692,601.6,600.68,0.33295598]
[1743368252001,1.25236815,601.57,600.68,0.33295598]
[1743368252397,1.25236815,601.56,600.68,0.33295598]
[1743368252903,1.25236815,601.55,600.68,0.33295598]
[1743368253197,1.25236815,601.54,600.68,0.33295598]
[1743368253802,1.25236815,601.53,600.68,0.33295598]
[1743368254805,1.25236815,601.52,600.68,0.33295598]
[1743368255123,1.488,601.57,600.68,0.33295598]
[1743368255498,2.99734603,601.57,600.68,0.33295598]
[1743368255698,1.488,601.57,600.68,0.33295598]
[1743368255899,2.76173352,601.56,600.68,0.33295598]
[1743368256302,1.50934603,601.55,600.68,0.33295598]
[1743368256503,1.50934603,601.54,600.68,0.33295598]
[1743368256702,1.50934603,601.53,600.68,0.33295598]
[1743368256899,1.25238749,601.55,600.68,0.33295598]
[1743368257103,1.50943882,601.54,600.68,0.33295598]
[1743368257303,1.50943882,601.53,600.68,0.33295598]
[1743368257503,1.25238749,601.54,600.68,0.33295598]
[1743368257704,1.50941988,601.53,600.68,0.33295598]
[1743368257904,1.25238749,601.54,600.68,0.33295598]
[1743368258100,1.25238749,601.52,600.68,0.33295598]
[1743368258706,1.25238749,601.51,600.68,0.33295598]
[1743368258906,1.25238749,601.51,600.73,2.53668648]
[1743368259305,1.25238749,601.5,600.73,2.53668648]
[1743368260003,1.25238749,601.49,600.73,2.53668648]
[1743368260908,1.25238749,601.48,600.73,2.53668648]
[1743368261808,1.25238749,601.48,600.69,0.28947894]
[1743368262008,1.25238749,601.47,600.69,0.28947894]
[1743368262204,1.25238749,601.47,600.68,2.86964246]
[1743368262709,1.488,601.57,600.68,2.86964246]
[1743368262910,1.5096158,601.56,600.68,2.86964246]
[1743368263103,1.5096158,601.55,600.69,2.53668648]
[1743368263310,1.5096158,601.54,600.69,2.53668648]
[1743368263512,1.5096158,601.55,600.69,2.82616421]
[1743368263906,3.25676866,601.54,600.69,2.82616421]
[1743368264711,1.25260333,601.53,600.69,2.82616421]
[1743368265128,1.25260333,601.53,600.69,2.53668648]
[1743368265309,1.25260333,601.52,600.69,2.53668648]
[1743368265712,1.25260333,601.52,600.73,2.53668648]
[1743368266111,1.25260333,601.51,600.73,2.53668648]
[1743368266711,1.5096173,601.56,600.73,2.53668648]
[1743368266908,1.5096173,601.55,600.73,2.53668648]
[1743368267112,1.488,601.57,600.73,2.53668648]
[1743368267313,1.25254704,601.55,600.73,2.53668648]
[1743368267512,2.76211905,601.55,600.73,2.53668648]
[1743368267713,1.25254704,601.55,600.73,2.53668648]
[1743368268014,1.25254704,601.54,600.73,2.53668648]
[1743368268611,1.25254704,601.53,600.73,2.53668648]
[1743368268915,1.25254704,601.53,600.69,2.53668648]
[1743368269417,1.25254704,601.52,600.7,0.28948014]
[1743368269916,1.25254704,601.51,600.7,0.28948014]
[1743368270715,1.50911044,601.55,600.7,0.28948014]
[1743368270912,1.688,601.5,600.7,0.28948014]
[1743368271115,1.688,601.5,600.68,0.33295598]
[1743368272520,1.688,601.5,600.69,0.28949098]
[1743368273121,1.25199473,601.49,600.69,0.28949098]
[1743368273518,1.25199473,601.48,600.69,0.28949098]
[1743368274120,1.25199473,601.48,600.68,0.33295598]
[1743368274314,1.25199473,601.48,600.69,0.28948737]
[1743368274514,1.25199473,601.47,600.69,0.28948737]
[1743368275520,1.25199473,601.46,600.69,0.28948737]
[1743368276117,1.688,601.5,600.69,0.28948737]
[1743368276918,1.25218279,601.49,600.69,0.28948737]
[1743368277117,1.25218279,601.49,600.68,0.33295598]
[1743368277725,1.25218279,601.49,600.69,0.28949218]
[1743368277924,1.25218279,601.48,600.69,0.28949218]
[1743368278523,1.611,601.47,600.69,0.28949218]
[1743368279628,1.596,601.46,600.69,0.28949218]
[1743368280244,1.596,601.46,600.68,0.33295598]
[1743368281423,1.596,601.46,600.75,2.53668648]
[1743368282225,1.596,601.46,600.71,2.53668648]
[1743368283630,1.596,601.46,600.7,2.53668648]
[1743368284930,1.596,601.46,600.71,2.53668648]
[1743368286929,1.596,601.46,600.69,0.28948737]
[1743368288535,1.25199101,601.45,600.69,0.28948737]
[1743368289134,1.25199101,601.45,600.68,0.33295598]
[1743368289535,1.25199101,601.44,600.68,0.33295598]
[1743368290532,1.596,601.46,600.69,0.2894982]
[1743368291134,1.25196929,601.45,600.69,0.2894982]
[1743368291735,1.25196929,601.44,600.69,0.2894982]
[1743368292238,1.25196929,601.44,600.68,0.33295598]
[1743368292434,1.596,601.46,600.68,0.33295598]
[1743368293241,1.25170106,601.45,600.68,0.33295598]
[1743368293434,1.25170106,601.45,600.69,0.28953915]
[1743368293833,1.25170106,601.44,600.69,0.28953915]
[1743368294941,1.596,601.46,600.69,0.28953915]
[1743368295240,1.596,601.46,600.68,0.33295598]
[1743368296234,1.25168017,601.45,600.68,0.33295598]
[1743368296439,1.25168017,601.45,600.69,0.28953674]
[1743368297045,1.596,601.46,600.69,0.28953674]
[1743368298143,1.596,601.46,600.68,0.33295598]
[1743368298578,1.596,601.46,600.69,0.28948977]
[1743368299542,1.596,601.46,600.69,0.62244021]
[1743368299739,1.596,601.46,600.7,0.33294489]
[1743368306143,1.788,601.45,600.7,0.33294489]
[1743368309358,3.672,601.45,600.7,0.33294489]
[1743368319160,5.065,601.45,600.7,0.33294489]
[1743368324961,5.065,601.45,600.74,2.53668648]
[1743368325167,5.065,601.45,600.75,0.33291718]
[1743368326500,5.065,601.45,600.75,2.86960366]
[1743368327467,5.065,601.45,600.75,0.33291718]
[1743368333983,5.065,601.45,600.78,2.53668648]
[1743368334187,5.065,601.45,600.79,0.33289502]
[1743368335077,5.065,601.45,600.82,2.53668648]
[1743368335376,5.065,601.45,600.82,2.86956487]
[1743368335977,5.065,601.45,600.82,0.33287839]
[1743368337077,5.065,601.45,600.9,2.53668648]
[1743368338775,5.065,601.45,600.91,2.53668648]
[1743368339976,5.065,601.45,600.87,2.53668648]
[1743368344081,5.065,601.45,600.85,2.53668648]
[1743368344482,5.065,601.45,600.85,2.82612088]
[1743368345486,5.065,601.45,600.85,0.2894344]
[1743368346285,5.065,601.45,600.82,0.33287839]
[1743368346480,5.065,601.45,600.85,0.28944042]
[1743368349082,5.065,601.45,600.82,0.33287839]
[1743368349387,5.065,601.45,600.85,0.28944042]
[1743368352289,5.065,601.45,600.82,0.33287839]
[1743368353590,5.065,601.45,600.83,0.28947412]
[1743368355189,5.065,601.45,600.82,0.33287839]
[1743368356487,5.065,601.45,600.83,0.28947171]
[1743368358186,5.065,601.45,600.82,0.33287839]
[1743368359388,5.065,601.45,600.83,0.28945847]
[1743368361295,5.065,601.45,600.82,0.33287839]
[1743368362493,5.065,601.45,600.83,0.28945004]
[1743368364197,5.065,601.45,600.82,0.33287839]
[1743368365497,5.065,601.45,600.83,0.28945245]
[1743368367200,5.065,601.45,600.82,0.33287839]
[1743368368502,5.065,601.45,600.83,0.28945486]
[1743368370302,5.065,601.45,600.82,0.33287839]
[1743368371601,5.065,601.45,600.83,0.28944764]
[1743368373405,5.065,601.45,600.82,0.33287839]
[1743368374601,5.065,601.45,600.83,0.28944162]
[1743368375708,5.065,601.45,600.9,2.53668648]
[1743368376708,5.065,601.45,600.89,2.53668648]
[1743368377902,5.065,601.45,600.86,2.53668648]
[1743368380112,5.065,601.45,600.82,0.33287839]
[1743368380513,5.065,601.45,600.85,0.2894356]
[1743368382312,5.065,601.45,600.82,0.33287839]
[1743368383411,5.065,601.45,600.83,0.28946208]
[1743368385218,5.065,601.45,600.82,0.33287839]
[1743368386417,5.065,601.45,600.83,0.28945125]
[1743368386617,5.065,601.45,600.84,0.33286731]
[1743368408538,5.065,601.45,600.91,2.53668648]
[1743368408842,5.065,601.45,600.92,0.332823]
[1743368416946,3.277,601.45,600.92,0.332823]
[1743368418149,1.884,601.45,600.92,0.332823]
[1743368420847,2.715,601.93,600.92,0.332823]
[1743368423155,4.318,601.93,600.92,0.332823]
[1743368432660,3.001,601.93,600.92,0.332823]
[1743368435570,1.323,601.92,600.92,0.332823]
[1743368449980,1.323,601.92,601.08,2.53668648]
[1743368450184,1.323,601.92,601.09,0.33272887]
[1743368451385,1.323,601.92,601.17,2.53668648]
[1743368451706,1.323,601.92,601.18,0.33267906]
[1743368452684,1.398,601.93,601.18,0.33267906]
[1743368453687,1.398,601.93,601.21,2.53668648]
[1743368453904,1.398,601.93,601.21,2.86934894]
[1743368454689,1.361,601.97,601.21,2.86934894]
[1743368455097,1.361,601.97,601.28,2.53668648]
[1743368456397,1.361,601.97,601.21,0.33266246]
[1743368458397,3.018,601.97,601.21,0.33266246]
[1743368467502,1.657,601.97,601.21,0.33266246]
[1743368470204,1.575,601.96,601.21,0.33266246]
[1743368496123,1.657,601.97,601.21,0.33266246]
[1743368497660,1.657,601.97,601.21,2.86934894]
[1743368499231,1.657,601.97,601.28,2.53668648]
[1743368499433,1.657,601.97,601.29,0.3326182]
[1743368500229,1.649,601.96,601.29,0.3326182]
[1743368501428,1.649,601.96,601.3,2.53668648]
[1743368501633,1.649,601.96,601.31,0.33260714]
[1743368504734,1.649,601.96,601.32,2.53668648]
[1743368505140,1.649,601.96,601.33,0.33259607]
[1743368506433,1.151,601.95,601.33,0.33259607]
[1743368513340,3.027,601.95,601.33,0.33259607]
[1743368514041,3.027,601.95,601.42,2.53668648]
[1743368514240,3.027,601.95,601.43,0.33254077]
[1743368514836,4.504,601.95,601.43,0.33254077]
[1743368541264,4.504,601.95,601.43,2.86922725]
[1743368542869,4.504,601.95,601.43,0.33254077]
[1743368545771,4.504,601.95,601.43,2.86922725]
[1743368546973,2.628,601.95,601.43,2.86922725]
[1743368547173,2.628,601.95,601.65,2.53668648]
[1743368547576,6.98641802,602.84,601.66,0.33241365]
[1743368547781,6.98641802,602.83,601.66,0.33241365]
[1743368548080,7.48455542,602.82,601.66,0.33241365]
[1743368548275,7.48455542,602.81,601.66,0.33241365]
[1743368548472,3.9048281,602.82,601.66,0.33241365]
[1743368548473,7.48455542,602.8,601.66,0.33241365]
[1743368548673,7.81634592,602.79,601.66,0.33241365]
[1743368548873,7.81635143,602.78,601.66,0.33241365]
[1743368549073,7.31821953,602.77,601.66,0.33241365]
[1743368549374,6.98641802,602.76,601.66,0.33241365]
[1743368549572,6.98641802,602.75,601.66,0.33241365]
[1743368549773,2.41491485,602.74,601.66,0.33241365]
[1743368550374,1.24640188,602.73,601.66,0.33241365]
[1743368550674,3.66131673,602.73,601.66,0.33241365]
[1743368550971,1.405,602.72,601.66,0.33241365]
[1743368551177,9.6378199,602.72,601.66,0.33241365]
[1743368551377,8.65341802,602.71,601.66,0.33241365]
[1743368551577,6.3223292,602.7,601.66,0.33241365]
[1743368551776,4.83622775,602.69,601.66,0.33241365]
[1743368551975,0.9288134,602.68,601.66,0.33241365]
[1743368552173,4.8336415,602.68,601.66,0.33241365]
[1743368552374,4.83622775,602.67,601.66,0.33241365]
[1743368552570,0.9288134,602.66,601.66,0.33241365]
[1743368552975,4.8336415,602.66,601.66,0.33241365]
[1743368553277,4.83622775,602.65,601.66,0.33241365]
[1743368553471,4.83655212,602.64,601.66,0.33241365]
[1743368553674,2.43185687,602.63,601.66,0.33241365]
[1743368553871,3.90757337,602.64,601.66,0.33241365]
[1743368554071,2.43185687,602.63,601.66,0.33241365]
[1743368554376,1.53544683,602.65,601.66,0.33241365]
[1743368554377,4.83661259,602.64,601.66,0.33241365]
[1743368554674,1.53544683,602.65,601.66,0.33241365]
[1743368554675,4.83661259,602.63,601.66,0.33241365]
[1743368554877,2.43185687,602.62,601.66,0.33241365]
[1743368555077,4.83653587,602.64,601.66,0.33241365]
[1743368555278,4.83653587,602.63,601.66,0.33241365]
[1743368555478,5.67250176,602.62,601.66,0.33241365]
[1743368555678,2.43185687,602.61,601.66,0.33241365]
[1743368556176,2.4319309,602.61,601.66,0.33241365]
[1743368556377,1.50293453,602.61,601.66,0.33241365]
[1743368556575,3.24064489,602.6,601.66,0.33241365]
[1743368556772,2.43198673,602.59,601.66,0.33241365]
[1743368557079,1.24640188,602.58,601.66,0.33241365]
[1743368557580,1.53547564,602.58,601.66,0.33241365]
[1743368557977,1.24640188,602.57,601.66,0.33241365]
[1743368558878,1.24640188,602.56,601.66,0.33241365]
[1743368559479,1.24640188,602.55,601.66,0.33241365]
[1743368560376,1.24640188,602.54,601.66,0.33241365]
[1743368561176,1.24640188,602.53,601.66,0.33241365]
[1743368561783,1.24640188,602.52,601.66,0.33241365]
[1743368562678,1.24640188,602.63,601.66,0.33241365]
[1743368562886,3.68086336,602.63,601.66,0.33241365]
[1743368563684,2.17648932,602.62,601.66,0.33241365]
[1743368563981,2.75096463,602.62,601.66,0.33241365]
[1743368564182,1.50456275,602.61,601.66,0.33241365]
[1743368568382,1.24640188,602.56,601.66,0.33241365]
[1743368568584,1.24640188,602.55,601.66,0.33241365]
[1743368568981,1.24640188,602.54,601.66,0.33241365]
[1743368569787,1.24640188,602.53,601.66,0.33241365]
[1743368570287,1.24640188,602.52,601.66,0.33241365]
[1743368570679,2.43525771,602.61,601.66,0.33241365]
[1743368570882,1.50456275,602.6,601.66,0.33241365]
[1743368571384,2.75389844,602.59,601.66,0.33241365]
[1743368571586,1.24933569,602.59,601.66,0.33241365]
[1743368571785,2.75389844,602.59,601.66,0.33241365]
[1743368571982,1.24933569,602.59,601.66,0.33241365]
[1743368572182,1.24933569,602.58,601.66,0.33241365]
[1743368572888,1.24933569,602.57,601.66,0.33241365]
[1743368574090,1.24933569,602.56,601.66,0.33241365]
[1743368574688,1.24933569,602.55,601.66,0.33241365]
[1743368575786,1.24933569,602.54,601.66,0.33241365]
[1743368576587,1.24933569,602.53,601.66,0.33241365]
[1743368577388,1.24933569,602.52,601.66,0.33241365]
[1743368578193,1.24933569,602.51,601.66,0.33241365]
[1743368578893,1.24933569,602.5,601.66,0.33241365]